bitfinex-derivatives/quotes_BTCF0:USTF0_20250509
["timestamp","ask_amount","ask_price","bid_price","bid_amount"]
[1746794728305,0.32019251,103040.0,103030.0,0.71797268]
[1746794729499,0.32019251,103040.0,103030.0,0.35717268]
[1746794729701,0.32019251,103040.0,103030.0,0.91211998]
[1746794729901,0.32019251,103040.0,103030.0,0.91212001]
[1746794730298,0.32019251,103040.0,103030.0,1.04296001]
[1746794732710,0.32219251,103040.0,103030.0,1.04296001]
[1746794733394,0.32219251,103040.0,103030.0,1.04295999]
[1746794733599,0.32319251,103040.0,103030.0,1.04195999]
[1746794734406,0.32319251,103040.0,103030.0,1.02678693]
[1746794734606,0.32319251,103040.0,103030.0,1.04196]
[1746794736905,0.32319251,103040.0,103030.0,1.0419599]
[1746794738411,0.01427,103040.0,103030.0,1.26260929]
[1746794738604,0.2083984,103040.0,103030.0,1.26260929]
[1746794738805,0.2083984,103040.0,103030.0,2.76260929]
[1746794739610,0.48641433,103060.0,103050.0,0.1941096]
[1746794739811,0.53494083,103060.0,103050.0,0.83615835]
[1746794740011,0.53494083,103060.0,103050.0,0.78450896]
[1746794740213,0.53494083,103060.0,103050.0,1.04156335]
[1746794740514,0.49874083,103060.0,103050.0,1.14156069]
[1746794741011,0.45021433,103060.0,103050.0,1.14156069]
[1746794741206,0.45021433,103060.0,103050.0,1.62301008]
[1746794741207,0.31764543,103060.0,103050.0,1.62301008]
[1746794741407,0.12955463,103060.0,103050.0,1.62301008]
[1746794741615,0.006,103060.0,103050.0,1.62301008]
[1746794741912,0.2000908,103060.0,103050.0,1.62301008]
[1746794742105,0.2000908,103060.0,103050.0,1.62300763]
[1746794742305,0.012,103060.0,103050.0,1.62400763]
[1746794742805,0.31762653,103070.0,103060.0,0.1940908]
[1746794743005,0.31762653,103070.0,103060.0,0.89520805]
[1746794743214,0.31762653,103070.0,103060.0,1.06983444]
[1746794743514,0.31762653,103070.0,103060.0,2.66686058]
[1746794744107,0.32362653,103070.0,103060.0,2.66886058]
[1746794744507,0.32362653,103070.0,103060.0,2.68341734]
[1746794745617,0.32362653,103070.0,103060.0,2.68341627]
[1746794745810,0.32362653,103070.0,103060.0,2.58341627]
[1746794746010,0.2000719,103070.0,103060.0,2.58341627]
[1746794746205,0.2353719,103070.0,103060.0,2.58341627]
[1746794746605,0.2353719,103070.0,103060.0,2.46276688]
[1746794747416,0.2353719,103070.0,103060.0,2.4627669]
[1746794747608,0.2353719,103070.0,103060.0,2.47257545]
[1746794748117,0.2353719,103070.0,103060.0,2.31257545]
[1746794748514,0.2323719,103070.0,103060.0,2.42712864]
[1746794748717,0.2323719,103070.0,103060.0,2.44329545]
[1746794749017,0.2293719,103070.0,103060.0,2.44229545]
[1746794749211,0.35102129,103070.0,103060.0,2.0394761]
[1746794749410,0.42062129,103070.0,103060.0,2.2335669]
[1746794749813,0.42062129,103070.0,103060.0,2.0394761]
[1746794750315,0.42062129,103070.0,103060.0,0.5394761]
[1746794751515,0.42062129,103070.0,103060.0,0.1786761]
[1746794751715,0.2999719,103070.0,103060.0,0.7335669]
[1746794752012,0.2999719,103070.0,103060.0,0.8973469]
[1746794752313,0.2999719,103070.0,103060.0,1.0573469]
[1746794753822,0.2999719,103070.0,103060.0,1.05734862]
[1746794757717,0.001,103070.0,103060.0,1.27799801]
[1746794757908,0.1950719,103070.0,103060.0,1.27799801]
[1746794758414,0.1950719,103070.0,103060.0,2.77799801]
[1746794759120,0.1950719,103070.0,103060.0,2.77799582]
[1746794761422,0.001,103070.0,103060.0,2.77799582]
[1746794762625,0.001,103070.0,103060.0,2.77799556]
[1746794762821,0.1980531,103080.0,103070.0,0.1940719]
[1746794763025,0.1980531,103080.0,103070.0,0.89288737]
[1746794763322,0.1980531,103080.0,103070.0,1.06751376]
[1746794763528,0.2336531,103080.0,103070.0,1.16453049]
[1746794763819,0.2336531,103080.0,103070.0,2.66453049]
[1746794764022,0.2346531,103080.0,103070.0,2.66453049]
[1746794764222,0.2346531,103080.0,103070.0,2.50453049]
[1746794764419,0.2346531,103080.0,103070.0,2.40453049]
[1746794764927,0.2346531,103080.0,103070.0,2.50453049]
[1746794765124,0.2346531,103080.0,103070.0,2.50553049]
[1746794765830,0.35530249,103080.0,103070.0,0.7156811]
[1746794766128,0.54950249,103080.0,103070.0,0.7156811]
[1746794766326,0.55050249,103080.0,103070.0,2.2176811]
[1746794766623,0.4298531,103080.0,103070.0,2.2176811]
[1746794766927,0.4288531,103080.0,103070.0,2.2186811]
[1746794767130,0.4288531,103080.0,103070.0,2.2540811]
[1746794771527,0.4288531,103080.0,103070.0,2.254081]
[1746794774137,0.2688531,103080.0,103070.0,2.254081]
[1746794774936,0.2688531,103080.0,103070.0,2.37473039]
[1746794775236,0.2346531,103080.0,103070.0,2.37473039]
[1746794775434,0.1990531,103080.0,103070.0,2.47473039]
[1746794775635,0.1990531,103080.0,103070.0,2.37473039]
[1746794776341,0.1990531,103080.0,103070.0,2.53473039]
[1746794776539,0.2354531,103080.0,103070.0,2.53473039]
[1746794777628,0.2354531,103080.0,103070.0,2.414081]
[1746794777829,0.2354531,103080.0,103070.0,2.63473039]
[1746794778031,0.2354531,103080.0,103070.0,2.514081]
[1746794778235,0.2354531,103080.0,103070.0,2.63473039]
[1746794779044,0.2354531,103080.0,103070.0,2.514081]
[1746794779331,0.2354531,103080.0,103070.0,3.69961039]
[1746794780138,0.2354531,103080.0,103070.0,3.53961039]
[1746794780327,0.2354531,103080.0,103070.0,3.53960989]
[1746794780839,0.2354531,103080.0,103070.0,3.79960989]
[1746794782243,0.2354531,103080.0,103070.0,3.95960989]
[1746794782842,0.2354531,103080.0,103070.0,3.8389605]
[1746794783031,0.2354531,103080.0,103070.0,3.95960989]
[1746794783841,0.2354531,103080.0,103070.0,3.95960991]
[1746794784045,0.2354531,103080.0,103070.0,3.85960991]
[1746794784237,0.2354531,103080.0,103070.0,3.95960991]
[1746794784732,0.2707531,103080.0,103070.0,3.99008991]
[1746794785142,0.2707531,103080.0,103070.0,3.70944052]
[1746794785332,0.2707531,103080.0,103070.0,3.83008991]
[1746794785532,0.2707531,103080.0,103070.0,3.57008991]
[1746794787336,0.2707531,103080.0,103070.0,3.67008992]
[1746794787537,0.04237,103090.0,103080.0,0.1940531]
[1746794787737,0.00727,103090.0,103080.0,0.892868]
[1746794787943,0.2013043,103090.0,103080.0,0.892868]
[1746794788130,0.2013043,103090.0,103080.0,1.04988473]
[1746794788330,0.2013043,103090.0,103080.0,1.04988225]
[1746794788938,0.2013043,103090.0,103080.0,1.05088225]
[1746794789140,0.2013043,103090.0,103080.0,0.90573378]
[1746794789339,0.2023043,103090.0,103080.0,0.90573378]
[1746794789543,0.2023043,103090.0,103080.0,1.05417173]
[1746794790543,0.2382043,103090.0,103080.0,1.05417173]
[1746794790738,0.2747043,103090.0,103080.0,1.0390087]
[1746794791040,0.2747043,103090.0,103080.0,1.05417234]
[1746794792544,0.2747043,103090.0,103080.0,0.90573439]
[1746794793842,0.2747043,103090.0,103080.0,1.08573439]
[1746794794045,0.2747043,103090.0,103080.0,0.90573439]
[1746794795945,0.2737043,103090.0,103080.0,0.879385]
[1746794796139,0.4337043,103090.0,103080.0,0.84768539]
[1746794796547,0.4347043,103090.0,103080.0,0.84968539]
[1746794797047,0.4347043,103090.0,103080.0,0.88528539]
[1746794797243,0.4347043,103090.0,103080.0,0.52523229]
[1746794797443,0.55535369,103090.0,103080.0,0.49183229]
[1746794797645,1.0131617,103090.0,103080.0,0.09127259]
[1746794797840,1.38381109,103090.0,103080.0,0.00396252]
[1746794798145,0.1940531,103080.0,103070.0,0.26814662]
[1746794798352,0.1940719,103070.0,103060.0,0.01455676]
[1746794798549,0.1940908,103060.0,103050.0,0.60785678]
[1746794798746,0.35034019,103060.0,103050.0,0.44116638]
[1746794799245,0.2296908,103060.0,103050.0,0.5381737]
[1746794800044,0.2296908,103060.0,103050.0,0.8989737]
[1746794800251,0.2306908,103060.0,103050.0,0.9049737]
[1746794800938,0.2306908,103060.0,103050.0,1.03920124]
[1746794800939,0.2316908,103060.0,103050.0,1.03920124]
[1746794801248,0.2316908,103060.0,103050.0,1.02164446]
[1746794801443,0.2316908,103060.0,103050.0,1.25076446]
[1746794801941,0.2268369,103060.0,103050.0,1.25076446]
[1746794806146,0.0376,103060.0,103050.0,1.47141385]
[1746794806553,0.002,103060.0,103050.0,1.47141385]
[1746794806753,0.002,103060.0,103050.0,2.97141385]
[1746794807154,0.002,103060.0,103050.0,2.85076446]
[1746794807955,0.002,103060.0,103050.0,2.75076446]
[1746794808148,0.0379,103060.0,103050.0,2.59076446]
[1746794808553,0.0379,103060.0,103050.0,2.69076446]
[1746794808759,0.0379,103060.0,103050.0,2.59076446]
[1746794808953,0.2319908,103060.0,103050.0,2.72108446]
[1746794809154,0.2319908,103060.0,103050.0,2.88108446]
[1746794809350,0.0379,103060.0,103050.0,2.88108446]
[1746794809959,0.0379,103060.0,103050.0,2.91127373]
[1746794810156,0.0379,103060.0,103050.0,2.91127375]
[1746794811959,0.0379,103060.0,103050.0,2.91127424]
[1746794812853,0.2319908,103060.0,103050.0,2.91127424]
[1746794813049,0.0379,103060.0,103050.0,2.91127424]
[1746794813250,0.2319908,103060.0,103050.0,2.91123424]
[1746794813556,0.0379,103060.0,103050.0,3.01123424]
[1746794813746,0.002,103060.0,103050.0,3.01123424]
[1746794813948,0.002,103060.0,103050.0,3.13188363]
[1746794815445,0.04187,103090.0,103080.0,0.1940531]
[1746794815446,0.3814528,103090.0,103080.0,0.1940531]
[1746794815653,0.4503528,103090.0,103080.0,0.70029903]
[1746794815849,0.4503528,103090.0,103080.0,0.81862108]
[1746794816050,0.4018406,103090.0,103080.0,0.91565664]
[1746794816253,0.2702199,103090.0,103080.0,0.91565664]
[1746794816558,0.2702199,103090.0,103080.0,2.73032603]
[1746794816559,0.2371043,103090.0,103080.0,2.73032603]
[1746794816759,0.2391043,103090.0,103080.0,2.73032603]
[1746794817247,0.2391043,103090.0,103080.0,2.73132603]
[1746794817659,0.2391043,103090.0,103080.0,2.91132603]
[1746794817857,0.2391043,103090.0,103080.0,3.01132603]
[1746794818161,0.2371043,103090.0,103080.0,3.01132603]
[1746794818359,0.2381043,103090.0,103080.0,3.01432603]
[1746794819062,0.2381043,103090.0,103080.0,2.92921452]
[1746794819753,0.2308343,103090.0,103080.0,2.92921452]
[1746794820061,0.0368,103090.0,103080.0,3.02921452]
[1746794820249,0.0368,103090.0,103080.0,3.01419247]
[1746794820560,0.0368,103090.0,103080.0,2.82017247]
[1746794820757,0.001,103090.0,103080.0,3.1348408]
[1746794821155,0.001,103090.0,103080.0,3.17419141]
[1746794821452,0.001,103090.0,103080.0,4.23907141]
[1746794821655,0.001,103090.0,103080.0,4.3597208]
[1746794822061,0.001,103090.0,103080.0,4.23907141]
[1746794822260,0.001,103090.0,103080.0,4.25380264]
[1746794823763,0.001,103090.0,103080.0,4.37445203]
[1746794823955,0.0375,103090.0,103080.0,4.37445203]
[1746794824155,0.001,103090.0,103080.0,4.37445203]
[1746794824359,0.1979967,103110.0,103100.0,0.1940155]
[1746794824658,0.2344967,103110.0,103100.0,1.54833789]
[1746794824961,0.2344967,103110.0,103100.0,1.62859582]
[1746794825155,0.2709967,103110.0,103100.0,3.12859582]
[1746794825348,0.3063967,103110.0,103100.0,3.12859582]
[1746794825551,0.3063967,103110.0,103100.0,3.14324594]
[1746794825954,0.3093967,103110.0,103100.0,3.14324594]
[1746794826254,0.2739967,103110.0,103100.0,3.14324594]
[1746794826859,0.2749967,103110.0,103100.0,3.14324594]
[1746794827857,0.2749967,103110.0,103100.0,3.14324431]
[1746794829563,0.2729967,103110.0,103100.0,3.14324431]
[1746794830265,0.2719967,103110.0,103100.0,3.14424431]
[1746794831267,0.2719967,103110.0,103100.0,2.84624473]
[1746794831268,0.39264609,103110.0,103100.0,2.84624473]
[1746794831569,0.39264609,103110.0,103100.0,2.48544473]
[1746794831767,0.39264609,103110.0,103100.0,0.98544473]
[1746794832063,0.39264609,103110.0,103100.0,0.9854452]
[1746794832064,0.2719967,103110.0,103100.0,0.9854452]
[1746794832265,0.4319967,103110.0,103100.0,0.9854452]
[1746794832663,0.4319967,103110.0,103100.0,1.33651459]
[1746794832854,0.4319967,103110.0,103100.0,1.36901459]
[1746794833059,0.4319967,103110.0,103100.0,1.36901403]
[1746794833273,0.2354967,103110.0,103100.0,1.36901403]
[1746794833560,0.0415,103110.0,103100.0,1.36901403]
[1746794833760,0.0415,103110.0,103100.0,1.46901403]
[1746794837465,0.0415,103110.0,103100.0,1.47851362]
[1746794837663,0.2354967,103110.0,103100.0,2.74843362]
[1746794837865,0.2698967,103110.0,103100.0,2.43153914]
[1746794838171,0.58554609,103110.0,103100.0,1.93785914]
[1746794839063,0.58554609,103110.0,103100.0,0.43785914]
[1746794839757,0.58554609,103110.0,103100.0,0.79865914]
[1746794839954,0.58554609,103110.0,103100.0,0.78349744]
[1746794840162,0.58554609,103110.0,103100.0,0.43786013]
[1746794840364,0.58554609,103110.0,103100.0,0.30782013]
[1746794840869,0.58554609,103110.0,103100.0,0.12782013]
[1746794841065,0.70619548,103110.0,103100.0,0.12782013]
[1746794841264,0.58554609,103110.0,103100.0,0.12782013]
[1746794841464,0.68253409,103110.0,103100.0,0.12782013]
[1746794841863,0.68253409,103110.0,103100.0,0.30782013]
[1746794842368,0.68253409,103110.0,103100.0,0.12782013]
[1746794842969,0.68253409,103110.0,103100.0,0.30782013]
[1746794843163,0.68253409,103110.0,103100.0,0.03081281]
[1746794843164,1.16398348,103110.0,103100.0,0.03081281]
[1746794843368,0.1940343,103090.0,103080.0,0.01489036]
[1746794843667,0.1940719,103070.0,103060.0,0.7555883]
[1746794843864,0.30986752,103070.0,103060.0,0.97893505]
[1746794844070,0.37726752,103070.0,103060.0,0.97893505]
[1746794844271,0.41661813,103070.0,103060.0,1.07592355]
[1746794844771,0.41661813,103070.0,103060.0,1.11112355]
[1746794845667,0.41661813,103070.0,103060.0,1.11412355]
[1746794845869,0.41861813,103070.0,103060.0,1.12312355]
[1746794846173,0.25861813,103070.0,103060.0,1.12312355]
[1746794846568,0.25861813,103070.0,103060.0,1.24377294]
[1746794846764,0.22481813,103070.0,103060.0,1.60457294]
[1746794846971,0.22381813,103070.0,103060.0,1.47892355]
[1746794847167,0.25811813,103070.0,103060.0,0.92403525]
[1746794847470,0.25811813,103070.0,103060.0,1.11812605]
[1746794847874,0.25811813,103070.0,103060.0,1.47792605]
[1746794848059,0.25811813,103070.0,103060.0,1.11712605]
[1746794848873,0.25811813,103070.0,103060.0,1.24712605]
[1746794849065,0.25811813,103070.0,103060.0,1.24612605]
[1746794849266,0.41811813,103070.0,103060.0,1.24612605]
[1746794850269,0.25811813,103070.0,103060.0,1.24612605]
[1746794852067,0.22381813,103070.0,103060.0,1.24612605]
[1746794852267,0.22381813,103070.0,103060.0,1.36677544]
[1746794852971,0.22381813,103070.0,103060.0,1.24612605]
[1746794853172,0.25641813,103070.0,103060.0,1.24612605]
[1746794854769,0.37706752,103070.0,103060.0,1.24612605]
[1746794854972,0.73786752,103070.0,103060.0,0.29651525]
[1746794855275,0.53706752,103070.0,103060.0,0.32685489]
[1746794855574,0.89786752,103070.0,103060.0,0.52094569]
[1746794855979,0.89786752,103070.0,103060.0,0.52094593]
[1746794856274,0.73786752,103070.0,103060.0,0.52094593]
[1746794856475,0.73786752,103070.0,103060.0,0.32685513]
[1746794857276,0.89786752,103070.0,103060.0,0.32685513]
[1746794858162,0.73786752,103070.0,103060.0,0.32685513]
[1746794858368,0.73786752,103070.0,103060.0,0.52094593]
[1746794858680,0.37706752,103070.0,103060.0,0.52094593]
[1746794858977,0.25641813,103070.0,103060.0,0.52094593]
[1746794859171,0.25641813,103070.0,103060.0,0.74694593]
[1746794859474,0.22381813,103070.0,103060.0,1.10774593]
[1746794860875,0.22381813,103070.0,103060.0,1.30176593]
[1746794863179,0.22381813,103070.0,103060.0,1.14176593]
[1746794864078,0.22381813,103070.0,103060.0,1.15171121]
[1746794864483,0.23108813,103070.0,103060.0,1.15171121]
[1746794864873,0.23108813,103070.0,103060.0,1.2723606]
[1746794865074,0.23108813,103070.0,103060.0,1.4323606]
[1746794865269,0.00827,103070.0,103060.0,1.5323606]
[1746794865576,0.2023419,103070.0,103060.0,1.5323606]
[1746794865780,0.00827,103070.0,103060.0,3.0323606]
[1746794865981,0.3242629,103090.0,103080.0,0.1940531]
[1746794866277,0.3242629,103090.0,103080.0,1.20978237]
[1746794866475,0.3242629,103090.0,103080.0,1.27538237]
[1746794866676,0.3242629,103090.0,103080.0,1.37240349]
[1746794867177,0.3272629,103090.0,103080.0,1.2517541]
[1746794867479,0.3272629,103090.0,103080.0,1.37240349]
[1746794868879,0.3282629,103090.0,103080.0,1.37240349]
[1746794869479,0.3282629,103090.0,103080.0,1.35723844]
[1746794869680,0.3262629,103090.0,103080.0,1.37240313]
[1746794869871,0.3252629,103090.0,103080.0,1.37440313]
[1746794870067,0.4852629,103090.0,103080.0,1.37440313]
[1746794870273,0.4852629,103090.0,103080.0,1.25375374]
[1746794870476,0.4852629,103090.0,103080.0,1.24058905]
[1746794870672,0.1942,103090.0,103080.0,1.25575387]
[1746794870879,0.3550343,103090.0,103080.0,1.73720326]
[1746794871077,0.1950343,103090.0,103080.0,1.73720302]
[1746794872695,0.001,103090.0,103080.0,1.73720302]
[1746794873674,0.00727,103100.0,103090.0,0.1940343]
[1746794873874,0.00727,103100.0,103090.0,1.16416827]
[1746794874078,0.2012855,103100.0,103090.0,1.16416827]
[1746794874278,0.2012855,103100.0,103090.0,1.15569601]
[1746794874478,0.2012855,103100.0,103090.0,1.2763454]
[1746794874682,0.00727,103100.0,103090.0,1.3763454]
[1746794874978,0.00727,103100.0,103090.0,1.3783454]
[1746794875186,0.00727,103100.0,103090.0,1.5383454]
[1746794876083,0.00827,103100.0,103090.0,1.5383454]
[1746794877484,0.00827,103100.0,103090.0,2.6031854]
[1746794879588,0.00827,103100.0,103090.0,4.1031854]
[1746794880087,0.00827,103100.0,103090.0,4.1081854]
[1746794880989,1e-08,103100.0,103090.0,4.1081854]
[1746794881482,1e-08,103100.0,103090.0,3.99301559]
[1746794881787,0.00100001,103100.0,103090.0,4.09701125]
[1746794882178,0.00100001,103100.0,103090.0,4.11162918]
[1746794882375,0.0394,103110.0,103090.0,4.11162918]
[1746794882679,0.004,103110.0,103100.0,0.99928489]
[1746794882880,0.004,103110.0,103100.0,1.36344503]
[1746794883185,0.004,103110.0,103100.0,1.52344503]
[1746794883386,0.004,103110.0,103100.0,1.62044294]
[1746794883684,0.004,103110.0,103100.0,1.63530642]
[1746794883887,0.005,103110.0,103100.0,1.63530642]
[1746794884788,0.006,103110.0,103100.0,1.64030642]
[1746794885481,0.006,103110.0,103100.0,1.64030613]
[1746794885683,0.005,103110.0,103100.0,1.64030613]
[1746794885990,0.006,103110.0,103100.0,1.64330613]
[1746794886291,0.006,103110.0,103100.0,1.48330613]
[1746794887094,0.166,103110.0,103100.0,1.48330613]
[1746794888094,0.006,103110.0,103100.0,1.48330613]
[1746794888397,0.0376,103110.0,103100.0,1.84410613]
[1746794888695,0.0376,103110.0,103100.0,1.84410599]
[1746794889792,0.006,103110.0,103100.0,1.84410599]
[1746794891589,0.0377,103110.0,103100.0,1.84410599]
[1746794891894,0.006,103110.0,103100.0,1.84410599]
[1746794893391,0.03897,103120.0,103100.0,1.84410599]
[1746794893392,0.03897,103120.0,103100.0,1.77073988]
[1746794893587,0.03897,103120.0,103110.0,1.19051548]
[1746794893782,0.03897,103120.0,103110.0,1.38567519]
[1746794893995,0.03897,103120.0,103110.0,1.27988928]
[1746794894183,0.03897,103120.0,103110.0,2.87687308]
[1746794894796,0.03897,103120.0,103110.0,2.88983475]
[1746794895693,0.03897,103120.0,103110.0,2.89183288]
[1746794898289,0.03897,103120.0,103110.0,2.77118349]
[1746794898490,0.03897,103120.0,103110.0,3.01248227]
[1746794898696,0.03897,103120.0,103110.0,2.89183288]
[1746794899094,0.03897,103120.0,103110.0,2.87667504]
[1746794899299,0.03897,103120.0,103110.0,2.89183291]
[1746794900597,0.03897,103120.0,103110.0,2.77118352]
[1746794900794,0.03897,103120.0,103110.0,3.02147291]
[1746794900995,0.03897,103120.0,103110.0,3.01947291]
[1746794901298,0.03897,103120.0,103110.0,3.02347291]
[1746794904708,0.03897,103120.0,103110.0,3.1441223]
[1746794905308,0.03897,103120.0,103110.0,3.02347291]
[1746794906110,0.03897,103120.0,103110.0,3.1441223]
[1746794906410,0.03897,103120.0,103110.0,3.02347291]
[1746794906599,0.03897,103120.0,103110.0,3.1441223]
[1746794906600,0.03169428,103120.0,103110.0,3.1441223]
[1746794907208,0.03169428,103120.0,103110.0,3.02347291]
[1746794907209,0.19169428,103120.0,103110.0,3.02347291]
[1746794907508,0.22309428,103120.0,103110.0,3.02347291]
[1746794907910,0.22309428,103120.0,103110.0,3.00860943]
[1746794908412,0.22309428,103120.0,103110.0,3.00860936]
[1746794909009,0.22309428,103120.0,103110.0,3.02354814]
[1746794911422,0.22309428,103120.0,103110.0,4.08790814]
[1746794912322,0.22309428,103120.0,103110.0,4.20855753]
[1746794913122,0.06309428,103120.0,103110.0,4.20855753]
[1746794914125,0.03169428,103120.0,103110.0,4.20855753]
[1746794914324,0.00727,103130.0,103120.0,0.1939778]
[1746794914520,0.04137,103130.0,103120.0,0.9169356]
[1746794914717,0.04137,103130.0,103120.0,1.05252377]
[1746794914913,0.04137,103130.0,103120.0,1.14949346]
[1746794915116,0.07537,103130.0,103120.0,1.14949346]
[1746794915319,0.07537,103130.0,103120.0,1.15049346]
[1746794915924,0.07537,103130.0,103120.0,1.15249346]
[1746794916729,0.07537,103130.0,103120.0,1.13733566]
[1746794917025,0.07537,103130.0,103120.0,1.15249274]
[1746794917524,0.07537,103130.0,103120.0,1.16728459]
[1746794917818,0.07537,103130.0,103120.0,0.9466352]
[1746794918019,0.269329,103130.0,103120.0,0.8796352]
[1746794918223,0.429329,103130.0,103120.0,0.8796352]
[1746794918413,0.20137,103130.0,103120.0,1.48552459]
[1746794919123,0.04137,103130.0,103120.0,1.48552459]
[1746794919323,0.03409514,103130.0,103120.0,1.29150459]
[1746794919623,0.03409514,103130.0,103120.0,1.48552459]
[1746794920227,0.03409514,103130.0,103120.0,2.97058464]
[1746794923831,0.03409514,103130.0,103120.0,2.98552674]
[1746794924235,0.03409514,103130.0,103120.0,3.1821804]
[1746794926127,0.03409514,103130.0,103120.0,3.06153101]
[1746794926329,0.03409514,103130.0,103120.0,2.9526604]
[1746794926528,0.03409514,103130.0,103120.0,2.7586404]
[1746794926728,0.09799514,103130.0,103120.0,2.76743101]
[1746794926926,0.09314487,103130.0,103120.0,2.9880804]
[1746794927125,0.25314487,103130.0,103120.0,2.8880804]
[1746794927328,0.25314487,103130.0,103120.0,2.98808161]
[1746794927534,0.25314487,103130.0,103120.0,2.86743222]
[1746794927736,0.25314487,103130.0,103120.0,2.98808161]
[1746794928536,0.25314487,103130.0,103120.0,2.79142795]
[1746794930135,0.25314487,103130.0,103120.0,2.69142795]
[1746794930334,0.25314487,103130.0,103120.0,2.88544795]
[1746794930634,0.25314487,103130.0,103120.0,2.98544795]
[1746794931634,0.16,103130.0,103120.0,2.98544795]
[1746794931835,0.0366,103140.0,103130.0,0.193959]
[1746794932030,0.0366,103140.0,103130.0,0.96736551]
[1746794932233,0.02932527,103140.0,103130.0,0.86165822]
[1746794932435,0.02932527,103140.0,103130.0,0.95862791]
[1746794932635,0.06202527,103140.0,103130.0,1.0792773]
[1746794932838,0.06202527,103140.0,103130.0,1.0802773]
[1746794933035,0.06202527,103140.0,103130.0,1.0812773]
[1746794933239,0.22202527,103140.0,103130.0,1.0812773]
[1746794935339,0.22202527,103140.0,103130.0,1.2752973]
[1746794937036,0.18932527,103140.0,103130.0,1.2752973]
[1746794937341,0.18932527,103140.0,103130.0,1.3752973]
[1746794937640,0.16,103140.0,103130.0,1.49594669]
[1746794937839,0.17267462,103160.0,103150.0,0.1939214]
[1746794938034,0.17267462,103160.0,103150.0,2.89294791]
[1746794938233,0.17267462,103160.0,103150.0,2.92604791]
[1746794938428,0.17267462,103160.0,103150.0,3.0230082]
[1746794938631,0.10665717,103160.0,103150.0,3.0230082]
[1746794939031,0.14355717,103160.0,103150.0,3.06818025]
[1746794939331,0.30355717,103160.0,103150.0,3.06818025]
[1746794941934,0.30355717,103160.0,103150.0,3.06814025]
[1746794942135,0.29855717,103160.0,103150.0,3.07014025]
[1746794942337,0.26585717,103160.0,103150.0,3.26516025]
[1746794943044,0.29835717,103160.0,103150.0,3.26516025]
[1746794943937,0.49225977,103160.0,103150.0,3.26516025]
[1746794944138,0.29835717,103160.0,103150.0,3.14451086]
[1746794944335,0.2244,103160.0,103150.0,3.26516025]
[1746794945138,0.1919,103160.0,103150.0,3.36516025]
[1746794946044,0.0365,103170.0,103160.0,0.1939026]
[1746794946246,0.004,103170.0,103160.0,1.13132911]
[1746794946542,0.1978838,103170.0,103160.0,1.14620116]
[1746794946842,0.1978838,103170.0,103160.0,1.24314265]
[1746794947342,0.3903838,103170.0,103160.0,1.25173326]
[1746794947954,0.3903838,103170.0,103160.0,1.02361326]
[1746794948137,0.3913838,103170.0,103160.0,1.02361326]
[1746794948640,0.51203319,103170.0,103160.0,0.30697066]
[1746794948841,0.51203319,103170.0,103160.0,0.43621066]
[1746794949143,0.3913838,103170.0,103160.0,0.99091326]
[1746794949341,0.4253838,103170.0,103160.0,0.99091326]
[1746794949747,0.4253838,103170.0,103160.0,0.86167326]
[1746794949940,0.4253838,103170.0,103160.0,0.99091326]
[1746794950140,0.4253838,103170.0,103160.0,0.63011326]
[1746794950435,0.4253838,103170.0,103160.0,0.43621066]
[1746794950635,0.54603319,103170.0,103160.0,0.43621066]
[1746794951644,0.4253838,103170.0,103160.0,0.43621066]
[1746794952041,0.54603319,103170.0,103160.0,0.43621066]
[1746794953349,0.54603319,103170.0,103160.0,0.76621066]
[1746794953950,0.54603319,103170.0,103160.0,0.76620853]
[1746794954138,1.12441458,103170.0,103160.0,0.14696853]
[1746794954342,1.12441458,103170.0,103160.0,0.03002704]
[1746794954943,1.12441458,103170.0,103160.0,4e-08]
[1746794957451,1.22313203,103170.0,103160.0,4e-08]
[1746794959453,0.1939214,103150.0,103140.0,0.1924]
[1746794959653,0.31457079,103150.0,103140.0,1.25722]
[1746794959849,0.37977079,103150.0,103140.0,0.99335209]
[1746794960053,0.37977079,103150.0,103140.0,1.35415209]
[1746794960254,0.53977079,103150.0,103140.0,1.35415209]
[1746794960855,0.53977079,103150.0,103140.0,0.99335209]
[1746794961051,0.53977079,103150.0,103140.0,0.99635209]
[1746794962065,0.53977079,103150.0,103140.0,0.99935209]
[1746794962247,0.4191214,103150.0,103140.0,0.99935209]
[1746794962453,0.53977079,103150.0,103140.0,0.99935209]
[1746794962946,0.53977079,103150.0,103140.0,1.36015209]
[1746794963453,0.53977079,103150.0,103140.0,0.99935209]
[1746794964655,0.90057079,103150.0,103140.0,0.13463209]
[1746794964853,1.11817219,103150.0,103140.0,1e-07]
[1746794965053,1.11817219,103150.0,103120.0,0.01479185]
[1746794965054,0.193959,103130.0,103120.0,0.01479185]
[1746794965258,0.1939778,103120.0,103110.0,0.428]
[1746794965459,0.37842719,103120.0,103110.0,0.768]
[1746794965653,0.41062719,103120.0,103110.0,0.768]
[1746794965854,0.41062719,103120.0,103110.0,0.86495089]
[1746794966359,0.57062719,103120.0,103110.0,0.50415089]
[1746794966964,0.57062719,103120.0,103110.0,0.53947585]
[1746794968148,0.58018025,103120.0,103110.0,0.57137585]
[1746794968351,0.94098025,103120.0,103110.0,0.13227585]
[1746794968557,0.94198025,103120.0,103110.0,0.13527585]
[1746794969162,0.94198025,103120.0,103100.0,0.0632]
[1746794969163,0.1939967,103110.0,103100.0,0.0632]
[1746794969354,0.86099548,103110.0,103100.0,0.42238404]
[1746794969556,0.37954609,103110.0,103100.0,0.73126314]
[1746794969754,0.74034609,103110.0,103100.0,0.73126314]
[1746794970053,0.90034609,103110.0,103100.0,0.73126314]
[1746794970762,0.90234609,103110.0,103100.0,0.74026314]
[1746794971464,0.90334609,103110.0,103100.0,0.75126314]
[1746794974458,0.54254609,103110.0,103100.0,0.75126314]
[1746794974659,0.90334609,103110.0,103100.0,0.75126314]
[1746794975565,0.7177967,103110.0,103100.0,0.75126314]
[1746794975864,0.3569967,103110.0,103100.0,1.11206314]
[1746794976053,0.3900967,103110.0,103100.0,0.94527864]
[1746794976256,0.51074609,103110.0,103100.0,0.75126314]
[1746794976561,0.51074609,103110.0,103100.0,1.11206314]
[1746794976965,0.51074609,103110.0,103100.0,1.11206243]
[1746794977658,0.99219548,103110.0,103100.0,0.16119223]
[1746794977863,1.15608348,103110.0,103100.0,0.16119223]
[1746794978167,1.15608348,103110.0,103100.0,0.1611932]
[1746794978567,1.05909548,103110.0,103100.0,0.16119321]
[1746794980969,1.05909548,103110.0,103100.0,0.19429321]
[1746794981268,1.05909548,103110.0,103100.0,0.20945754]
[1746794982970,0.93844609,103110.0,103100.0,0.20945754]
[1746794983864,1.05909548,103110.0,103100.0,0.20945754]
[1746794986974,1.05909548,103110.0,103100.0,0.17635754]
[1746794987164,1.05909548,103110.0,103100.0,0.07937844]
[1746794989570,1.05909548,103110.0,103100.0,4e-08]
[1746794990867,1.05709548,103110.0,103100.0,4e-08]
[1746794991074,0.93544609,103110.0,103100.0,4e-08]